[Event "FIDE Women GP Shimkent 2024"]
[Site "Shimkent"]
[Date "2024.11.03"]
[Round "5.1"]
[White "Tan, Zhongyi"]
[Black "Goryachkina, Aleksandra"]
[Result "0-1"]
[ECO "C50"]
[WhiteElo "2551"]
[BlackElo "2533"]
[Annotator "TA"]
[PlyCount "68"]
[EventDate "2024.10.11"]
[EventType "tourn"]
[EventCountry "KAZ"]
[SourceTitle "playchess.com"]
[Source "ChessBase"]
[SourceQuality "1"]
[TimeControl "40/5400+30:1800+30"]

{[%evp 10,68,13,13,11,10,3,0,0,0,18,13,17,-52,-48,-71,-43,-89,-89,-77,-59,-63,-57,-69,-50,-53,-32,-54,-65,-72,-63,-186,-138,-236,-100,-179,-173,-274,-274,-267,-268,-275,-278,-293,-308,-314,-307,-701,-713,-687,-679,-753,-731,-1568,-1364,-29983,-5297,-29982,-1394,-1316,-1283]} 1. e4 {[%emt 0:00:05]} e5 {[%emt 0:00:15]} 2. Nf3 {[%emt 0:00:06]} Nc6 {[%emt 0:00:12]} 3. Bc4 {[%emt 0:00:08]} Bc5 {[%emt 0:00:36]} 4. d3 {[%emt 0:00:09]} Nf6 {[%emt 0:00:36]} 5. Nc3 {[%emt 0:00:57]} h6 {[%emt 0:02:56]} 6. h3 {[%emt 0:00:12]} a6 {[%emt 0:01:03]} 7. Be3 {[%emt 0:01:09]} d6 {[%emt 0:01:48]} 8. Bxc5 {[%emt 0:00:43]} dxc5 {[%emt 0:00:06] The position is equal.} 9. a4 {[%emt 0:00:04]} Be6 {[%emt 0:10:42]} 10. Bxe6 {[%emt 0:02:26]} fxe6 {[%emt 0:00:05]} 11. O-O {[%emt 0:00:07]} ({White should try} 11. Nd2 $11) 11... Qe7 {[%emt 0:04:15]} 12. Nb1 {[%emt 0:33:28]} g5 {[%emt 0:03:05]} 13. Nbd2 {[%emt 0:00:43]} (13. Ne1 $15 {might be stronger.}) 13... g4 $17 {[%emt 0:06:36]} 14. hxg4 {[%emt 0:00:07]} Nxg4 {[%emt 0:00:30]} 15. g3 {[%emt 0:03:50]} (15. Nh2 h5 16. Nhf3 O-O-O $17) 15... O-O-O {[%emt 0:03:13]} 16. Kg2 {[%emt 0:00:06]} Rdf8 {[%emt 0:04:32] Black is much more active.} (16... h5 $5 17. c3 Rxd3 $11) 17. c3 {[%emt 0:01:16] Repels Nd4} h5 {[%emt 0:01:37][%cal Oh5h4]} 18. Rh1 {[%emt 0:01:02]} Qg7 {[%emt 0:08:18]} 19. Rh3 {[%emt 0:12:01]} Ne7 {[%emt 0:02:15] aiming for ...Ng6.} (19... h4 $5 20. Qe2 (20. Qb3 Kb8 $15) 20... hxg3 21. Rxg3 Qh6 $11) 20. Qb3 {[%emt 0:07:11] [#]} (20. Qe2 $1 $15) 20... Rf6 {[%emt 0:03:50]} (20... Ng6 $1 $19 {[%cal Rg6f4]} 21. Rg1 (21. Qxe6+ $2 Kb8 $19) 21... Rf6) 21. Rf1 {[%emt 0:07:16]} (21. Rah1 $17 {keeps fighting.} Ng6 22. Kf1 (22. Rxh5 $2 Nf4+ 23. Kg1 Nxh5 $19)) 21... Rhf8 {[%emt 0:06:42]} (21... Ng6 $19 {is more deadly.} 22. Rg1 Kb8) 22. Kg1 {[%emt 0:09:55]} (22. Rxh5 $2 Qf7 23. Qd1 Qxh5 $19) (22. Qd1 $17 {was necessary.} Ng6 23. Rg1 (23. Rxh5 $2 Nf4+ 24. Kg1 Nxh5 $19)) 22... Rxf3 $19 {[%emt 0:07:55]} 23. Qxe6+ {[%emt 0:00:15]} (23. Nxf3 $142 Rxf3 24. Qd1) 23... Kb8 {[%emt 0:00:56]} 24. Nxf3 {[%emt 0:00:06]} Rxf3 {[%emt 0:00:05]} 25. Rxh5 {[%emt 0:06:28]} Rxd3 {[%emt 0:01:46]} 26. Rh3 {[%emt 0:01:39]} Rd6 {[%emt 0:04:22]} 27. Qc4 {[%emt 0:00:08]} Rd2 {[%emt 0:02:51] Dodges Qe2. ...Ng6 would now be deadly.} 28. Qxc5 $2 {[%emt 0:02:08]} (28. Qe6) 28... Ng6 {[%emt 0:00:30]} (28... Rxb2 $2 29. f3 Nc8 (29... b6 30. Qa3 $11) 30. Qa3 $19 (30. fxg4 $2 Qxg4 31. Rf2 Rxf2 $19)) 29. Rh5 {[%emt 0:05:24] [#]} Nf4 $1 {[%emt 0:02:16][%mdl 512]} 30. Rh4 {[%emt 0:04:02] [#]} Nxf2 {[%emt 0:03:31][%mdl 512] A dynamic duo of knights.} 31. Qe3 {[%emt 0:00:06]} (31. Qxf2 Rxf2) 31... N4h3+ {[%emt 0:02:50]} (31... Rxb2 $2 32. Rxf2 Rb3 33. Kh2 $18) 32. Rxh3 {[%emt 0:02:27]} Nxh3+ {[%emt 0:00:06]} 33. Kh1 {[%emt 0:00:02]} Rd8 {[%emt 0:01:50]} (33... Rc2 $142 34. Qd3 Nf2+ (34... Rxb2 $2 35. Qd8+ Ka7 36. Qh4 $19) 35. Rxf2 Rxf2 36. Kg1 Rxb2 37. Qf3 Qh6 38. Qg2 Qe3+ (38... Rxg2+ {is a self mate.} 39. Kxg2 Qe3 40. Kh2 Qxe4 41. Kh3 Qf3 42. Kh4 e4 43. Kg5 e3 44. Kg6 e2 45. Kg7 e1=Q 46. g4 Qe7+ 47. Kg6 Qxg4+ 48. Kh6 Qeh4#) 39. Kh2 Rxg2+ 40. Kxg2 Qxe4+ 41. Kh3 Qf3 (41... Qxa4 42. Kg2 Qc6+ 43. Kf2 Qxc3 44. g4 e4 45. Ke2 Qd3+ 46. Kf2 Qf3+ 47. Kg1 e3 48. Kh2 e2 49. g5 e1=Q 50. g6 Qfh1#) 42. Kh4 e4 (42... Qxc3 {leads to mate.} 43. Kh3 e4 44. Kh4 e3 45. Kh5 Qh8+ 46. Kg6 e2 47. Kf7 e1=Q 48. Kg6 Qe6+ 49. Kg5 Qhh6#) 43. Kg5 e3 (43... Qxg3+ 44. Kf6 e3 45. Ke7 e2 46. Kf8 e1=Q 47. Kf7 Qee5 48. Kf8 Qgg7#) 44. Kg6 e2 (44... Qxg3+ 45. Kf6 e2 46. Kf7 e1=Q 47. c4 Qee5 48. Kf8 Qgg7#) 45. Kg7 e1=Q (45... e1=B {gets mated.} 46. Kg6 Qg4+ 47. Kf7 Bxc3 48. Ke7 Qg6 49. g4 Kc8 50. Kf8 Bb4#) 46. g4 Qe7+ (46... Qexc3+ $2 47. Kg8 Qff6 48. Kh7 Qg7#) 47. Kg6 Qxg4+ 48. Kh6 Qeh4#) 34. Rf5 {[%emt 0:00:30]} Rh8 {[%emt 0:00:30] Weighted Error Value: White=0.88/Black=0.49.  Mistake:       	White=7     	Black=2      Inaccurate:     	---       	Black=1      OK:         	White=9     	Black=7      Best:        	White=1     	Black=2} 0-1

[Event "FIDE Women GP Shimkent 2024"]
[Site "Shimkent"]
[Date "2024.11.03"]
[Round "5.2"]
[White "Munguntuul, Batkhuyag"]
[Black "Divya Deshmukh"]
[Result "0-1"]
[ECO "C84"]
[WhiteElo "2344"]
[BlackElo "2501"]
[Annotator "TA"]
[PlyCount "90"]
[EventDate "2024.10.11"]
[EventType "tourn"]
[EventCountry "KAZ"]
[SourceTitle "playchess.com"]
[Source "ChessBase"]
[SourceQuality "1"]
[TimeControl "40/5400+30:1800+30"]

{[%evp 18,90,46,14,16,0,0,0,0,-8,-8,-15,8,-12,-18,-23,0,-37,-39,-38,-41,-40,-33,-31,-41,-54,-48,-48,-47,-49,-51,-52,-52,-52,-39,-61,-52,-67,-52,-56,-67,-68,-60,-60,-55,-69,-45,-56,-46,-67,-39,-39,-39,-61,-62,-670,-705,-808,-795,-1032,-1020,-1545,-2150,-1965,-2098,-1790,-897,-1872,-1587,-1483,-1392,-29961,-12785,-6559,-5273]} 1. e4 {[%emt 0:00:30]} e5 {[%emt 0:00:12]} 2. Nf3 {[%emt 0:00:00]} Nc6 {[%emt 0:00:07]} 3. Bb5 {[%emt 0:00:00]} a6 {[%emt 0:00:15]} 4. Ba4 {[%emt 0:00:00]} Nf6 {[%emt 0:00:16]} 5. O-O {[%emt 0:00:00]} Be7 {[%emt 0:01:26]} 6. d3 {[%emt 0:00:43]} b5 {[%emt 0:00:04]} 7. Bb3 {[%emt 0:00:06]} d6 {[%emt 0:00:12]} 8. a3 {[%emt 0:01:37] C84: Closed Ruy Lopez: Unusual White 6th moves.} a5 {[%emt 0:00:15]} 9. Nc3 {[%emt 0:02:59]} a4 {[%emt 0:00:12]} 10. Ba2 {[%emt 0:00:28]} Rb8 {[%emt 0:00:20]} 11. Nd5 {[%emt 0:30:09]} Nxd5 {[%emt 0:00:22]} 12. Bxd5 {[%emt 0:00:11]} Bd7 {[%emt 0:00:06]} 13. c3 $146 {[%emt 0:03:15]} ({Predecessor:} 13. b4 axb3 14. cxb3 O-O 15. Qc2 Na7 16. b4 Nc8 17. Be3 Nb6 18. Bb3 Bg4 19. Nd2 {1-0 Vachier Lagrave,M (2778)-Rapport,R (2747) Saint Louis Blitz 2019 (11)}) 13... O-O {[%emt 0:00:15]} 14. Be3 {[%emt 0:04:07]} Na5 {[%emt 0:00:29]} 15. d4 {[%emt 0:03:04]} Bf6 {[%emt 0:00:28]} 16. dxe5 {[%emt 0:07:19]} dxe5 {[%emt 0:00:20]} 17. Qe2 {[%emt 0:02:14]} c6 {[%emt 0:09:20]} 18. Ba2 {[%emt 0:00:19]} Qe7 {[%emt 0:00:12]} 19. Rad1 {[%emt 0:07:13]} Be6 {[%emt 0:03:25]} 20. Bxe6 {[%emt 0:00:08]} Qxe6 {[%emt 0:05:28]} 21. Ne1 {[%emt 0:08:03]} Be7 {[%emt 0:07:32]} 22. Nd3 {[%emt 0:01:55]} Nc4 {[%emt 0:08:55]} 23. Bc5 {[%emt 0:00:43]} Rbd8 {[%emt 0:01:55]} 24. Bxe7 {[%emt 0:00:31]} Qxe7 {[%emt 0:00:01]} 25. Nb4 {[%emt 0:00:32]} Qc7 {[%emt 0:00:56]} 26. h3 {[%emt 0:02:06]} h6 {[%emt 0:00:31]} 27. Kh1 {[%emt 0:02:29]} Rfe8 {[%emt 0:04:38]} 28. Kh2 {[%emt 0:01:42]} Qc8 {[%emt 0:04:49]} 29. Rfe1 {[%emt 0:05:23]} Qe6 {[%emt 0:03:14]} 30. Na6 {[%emt 0:03:24]} Qf6 {[%emt 0:01:28]} 31. Nb4 {[%emt 0:03:22]} Kh7 {[%emt 0:05:09]} (31... h5 $5) 32. g3 {[%emt 0:00:33]} Qe6 {[%emt 0:26:13]} 33. Na6 {[%emt 0:01:06]} Qc8 {[%emt 0:00:53]} (33... Rf8 {feels hotter.} 34. Kg2 f5 35. exf5 Qxf5 36. g4 Qf7) 34. Nc5 {[%emt 0:02:50]} Qa8 {[%emt 0:02:01]} 35. Rxd8 {[%emt 0:04:18]} Rxd8 {[%emt 0:00:26]} 36. Rd1 $2 {[%emt 0:00:02][%mdl 8192]} (36. Nd3 $15) 36... Rxd1 $19 {[%emt 0:00:19]} 37. Qxd1 {[%emt 0:00:02]} Qa7 $1 {[%emt 0:00:16]} (37... Nxb2 38. Qd7 $11) 38. Nd3 {[%emt 0:03:15]} Nxb2 $1 {[%emt 0:00:20]} 39. Nxb2 {[%emt 0:00:07]} Qxf2+ {[%emt 0:00:03]} 40. Kh1 {[%emt 0:00:06]} Qxb2 {[%emt 0:00:20]} 41. Qd7 {[%emt 0:05:53]} Qb1+ {[%emt 0:03:26]} (41... Qxc3 42. Qf5+ Kh8 (42... g6 43. Qxf7+ Kh8 44. Qf8+ Kh7 45. Qe7+ Kg8 46. Qe8+ Kg7 47. Qe7+ Kg8 48. Qd8+ Kf7 49. Qd7+ Kf8 50. Qd8+ Kf7 51. Qd7+ Kf8 52. Qd8+ Kf7 $11) 43. Qc8+ Kh7 44. Qf5+ Kh8 (44... g6 45. Qxf7+ Kh8 46. Qf8+ Kh7 47. Qf7+ Kh8 48. Qf8+ Kh7 49. Qf7+ $11) 45. Qc8+ Kh7 46. Qf5+ $11) 42. Kh2 {[%emt 0:00:11]} Qa2+ {[%emt 0:02:27]} 43. Kg1 {[%emt 0:00:03]} Qxa3 {[%emt 0:00:38]} 44. Qxf7 {[%emt 0:03:25]} Qc1+ {[%emt 0:00:12]} (44... Qxc3 45. Qf5+ Kg8 (45... g6 46. Qf7+ Kh8 47. Qf8+ Kh7 48. Qf7+ Kh8 49. Qf8+ Kh7 50. Qf7+ $11) 46. Qc8+ Kf7 47. Qd7+ Kf6 48. Qd6+ Kg5 49. Qe7+ Kh5 (49... Kg6 $2 50. Qe6+ Kh7 51. Qf5+ Kg8 52. Qc8+ Kf7 53. Qd7+ Kf6 54. Qd6+ Kg5 55. Qe7+ Kh5 56. Qxg7 $19) 50. Qxg7 Qa1+ 51. Kf2 Qa2+ 52. Ke1 $19) 45. Kg2 {[%emt 0:00:29]} Qc2+ {[%emt 0:00:05]} ({Stronger than} 45... Qxc3 46. Qf5+ Kg8 47. Qc8+ Kf7 48. Qd7+ Kg8 49. Qc8+ Kf7 50. Qd7+ Kf8 51. Qd8+ Kf7 52. Qd7+ $11) 0-1

[Event "FIDE Women GP Shimkent 2024"]
[Site "Shimkent"]
[Date "2024.11.03"]
[Round "5.3"]
[White "Salimova, Nurgyul"]
[Black "Lagno, Kateryna"]
[Result "1/2-1/2"]
[ECO "D58"]
[WhiteElo "2405"]
[BlackElo "2527"]
[Annotator "TA"]
[PlyCount "88"]
[EventDate "2024.10.11"]
[EventType "tourn"]
[EventCountry "KAZ"]
[SourceTitle "playchess.com"]
[Source "ChessBase"]
[SourceQuality "1"]
[TimeControl "40/5400+30:1800+30"]

{[%evp 17,88,14,17,5,12,0,14,0,0,-4,0,0,-2,-12,0,0,-15,-15,0,0,0,0,33,27,25,-13,-21,-21,-22,-32,-28,-25,0,-29,-20,-22,-9,-8,0,-33,8,-81,-78,-54,-79,-65,-68,-291,-270,-258,-291,-240,-69,-67,0,0,0,0,0,0,0,0,0,0,0,0,0,0,0,0,0,0,0]} 1. d4 {[%emt 0:00:03]} d5 {[%emt 0:00:06]} 2. Nf3 {[%emt 0:01:38]} e6 {[%emt 0:00:22]} 3. c4 {[%emt 0:00:55]} Nf6 {[%emt 0:00:48]} 4. Nc3 {[%emt 0:00:56]} Be7 {[%emt 0:00:17]} 5. Bg5 {[%emt 0:05:43]} h6 {[%emt 0:00:30]} 6. Bh4 {[%emt 0:01:26]} O-O {[%emt 0:00:15]} 7. e3 {[%emt 0:01:42]} b6 {[%emt 0:00:23]} 8. Bd3 {[%emt 0:10:34]} dxc4 {[%emt 0:00:55]} 9. Bxc4 {[%emt 0:00:10]} Bb7 {[%emt 0:00:07]} 10. Qc2 {[%emt 0:04:13]} Nbd7 {[%emt 0:02:47]} 11. Rd1 {[%emt 0:02:48]} Rc8 {[%emt 0:27:40]} 12. Bg3 {[%emt 0:28:33]} Bd6 {[%emt 0:12:21]} 13. O-O {[%emt 0:10:10]} Bxg3 {[%emt 0:00:42]} 14. hxg3 {[%emt 0:00:18]} c5 {[%emt 0:04:28]} 15. d5 {[%emt 0:00:56]} exd5 {[%emt 0:00:51]} 16. Nxd5 {[%emt 0:00:11]} Nxd5 {[%emt 0:00:33]} 17. Bxd5 {[%emt 0:00:05]} Qc7 {[%emt 0:00:29]} 18. Bxb7 {[%emt 0:02:02]} Qxb7 {[%emt 0:00:05]} 19. Nh4 {[%emt 0:01:13]} Nf6 {[%emt 0:05:58]} 20. Nf5 {[%emt 0:02:13] Nd6 would now be deadly.} Rcd8 {[%emt 0:01:51]} 21. Qc3 {[%emt 0:02:01][%cal Of5h6]} Rxd1 {[%emt 0:04:43]} 22. Rxd1 {[%emt 0:00:04]} Qe4 $1 {[%emt 0:00:19]} 23. Qd3 {[%emt 0:11:44]} (23. Nxh6+ Kh7 24. f3 Qe6 $17) 23... Qe6 {[%emt 0:04:31]} 24. b3 {[%emt 0:03:42]} b5 {[%emt 0:08:11]} 25. Nh4 {[%emt 0:02:39]} c4 {[%emt 0:01:15]} 26. bxc4 {[%emt 0:00:09]} bxc4 {[%emt 0:00:02]} 27. Qd4 {[%emt 0:02:06]} Rc8 {[%emt 0:01:29] White must now prevent ...c3.} 28. Rc1 {[%emt 0:00:14]} Ne4 {[%emt 0:00:58]} 29. f3 {[%emt 0:00:55]} (29. Qxa7 $11 Rd8 30. Qa4) 29... Nxg3 $17 {[%emt 0:01:16][%cal Be4g3,Bg3h5,Bh5f6,Bf6d5][%mdl 32]} 30. Kf2 {[%emt 0:00:21] Prevents Ne2} Nh5 {[%emt 0:01:19][%cal Oc4c3]} 31. g4 {[%emt 0:01:03]} Nf6 {[%emt 0:00:18]} 32. Qxa7 $2 {[%emt 0:02:50]} (32. Nf5 $15) 32... Rd8 $19 {[%emt 0:06:12]} 33. Qa5 {[%emt 0:00:48] Prevents Rd2+.} Rd5 {[%emt 0:07:36]} 34. Qb4 {[%emt 0:00:29] [#]} Rd3 $2 {[%emt 0:00:37]} (34... Qe5 $1 $19 {[%cal Re5h2]} 35. Ng2 Qh2) 35. Ng2 $1 $15 {[%emt 0:01:33]} Nd5 {[%emt 0:03:13]} (35... c3 $1 $15 36. Qb8+ Ne8 (36... Kh7 37. Qb1 $11)) 36. Qxc4 $11 {[%emt 0:00:31] The position is equal.} Rd2+ {[%emt 0:00:24]} (36... Nxe3 $2 37. Qxd3 Nxg2 38. Qc4 $18 (38. Kxg2 Qxa2+ 39. Kh3 Qe6 $18) (38. Kxg2 Qxa2+ 39. Kh3 Qe6 $18)) 37. Kf1 {[%emt 0:00:05]} Rxa2 {[%emt 0:03:23]} 38. Qc8+ {[%emt 0:00:27]} (38. Qxa2 $2 {perishes.} Nxe3+ 39. Nxe3 Qxa2 $19) 38... Qxc8 {[%emt 0:00:11]} 39. Rxc8+ {[%emt 0:00:05][%mdl 4096] Endgame. KRN-KRN} Kh7 {[%emt 0:00:02]} 40. Rc5 {[%emt 0:01:42]} Nb4 {[%emt 0:00:59]} 41. Nf4 {[%emt 0:05:22]} Ra3 {[%emt 0:03:15]} 42. Ke2 {[%emt 0:06:07]} Ra2+ {[%emt 0:00:24]} 43. Kf1 {[%emt 0:00:11]} Ra3 {[%emt 0:00:14]} 44. Ke2 {[%emt 0:00:05]} Ra2+ {[%emt 0:00:05] Weighted Error Value: White=0.20 (precise) /Black=0.16 (very precise) .  Loses game:     	White=1     	---        Missed win:     	---       	Black=1      Mistake:       	White=1     	Black=1      Inaccurate:     	White=3     	Black=2      OK:         	White=10    	Black=15     Best:        	White=3     	Black=1      Strong:       	White=1     	Black=1} 1/2-1/2

[Event "FIDE Women GP Shimkent 2024"]
[Site "Shimkent"]
[Date "2024.11.03"]
[Round "5.4"]
[White "Assaubayeva, Bibisara"]
[Black "Koneru, Humpy"]
[Result "1-0"]
[ECO "A28"]
[WhiteElo "2487"]
[BlackElo "2530"]
[Annotator "TA"]
[PlyCount "67"]
[EventDate "2024.10.11"]
[EventType "tourn"]
[EventCountry "KAZ"]
[SourceTitle "playchess.com"]
[Source "ChessBase"]
[SourceQuality "1"]
[TimeControl "40/5400+30:1800+30"]

{[%evp 9,67,0,9,0,-4,-17,0,-16,0,-13,0,0,4,0,0,0,2,7,23,28,31,29,26,28,35,46,46,34,48,46,56,35,35,52,37,53,56,48,223,238,384,389,355,421,412,417,401,390,420,410,635,631,29977,1090,2045,2375,29987,29987,29987,2936]} 1. c4 {[%emt 0:00:03]} e5 {[%emt 0:00:17]} 2. Nc3 {[%emt 0:00:18]} Nf6 {[%emt 0:00:18]} 3. Nf3 {[%emt 0:00:17]} Nc6 {[%emt 0:00:20]} 4. e4 {[%emt 0:00:16]} Bb4 {[%emt 0:00:46]} 5. d3 {[%emt 0:00:14]} d6 {[%emt 0:00:25]} 6. Be2 {[%emt 0:03:52]} Bc5 {[%emt 0:01:37]} 7. h3 {[%emt 0:02:32]} Nd4 {[%emt 0:08:04]} 8. Be3 {[%emt 0:05:04] The position is equal.} c6 {[%emt 0:04:02]} 9. O-O {[%emt 0:01:30]} Nxf3+ {[%emt 0:12:17]} 10. Bxf3 {[%emt 0:00:17]} Be6 {[%emt 0:00:20]} 11. Qd2 {[%emt 0:05:15]} O-O {[%emt 0:00:50]} 12. Be2 {[%emt 0:04:14]} Bxe3 {[%emt 0:04:56]} 13. Qxe3 {[%emt 0:02:03]} c5 {[%emt 0:03:29]} 14. a3 {[%emt 0:03:20]} Nd7 {[%emt 0:03:42]} 15. b4 {[%emt 0:04:39]} b6 {[%emt 0:00:52]} 16. Bd1 {[%emt 0:04:02]} cxb4 {[%emt 0:10:57]} 17. axb4 {[%emt 0:00:16]} a5 {[%emt 0:00:08]} 18. Rb1 {[%emt 0:10:49]} axb4 {[%emt 0:05:33]} 19. Rxb4 {[%emt 0:00:12]} Qc7 {[%emt 0:01:32]} 20. Bc2 {[%emt 0:07:56]} Ra6 {[%emt 0:02:25]} 21. Rfb1 {[%emt 0:01:24]} Rb8 {[%emt 0:01:48]} 22. Kh1 {[%emt 0:11:08]} Qc5 {[%emt 0:05:50]} 23. Qd2 {[%emt 0:05:49]} f5 $2 {[%emt 0:03:46] A mistake that costs the game.} (23... Rba8 $14) 24. exf5 $18 {[%emt 0:02:50]} Bxf5 {[%emt 0:02:25] [#]} (24... Bf7 {was necessary.} 25. Ne4 Qc6) 25. Nd5 $1 {[%emt 0:02:05]} Bg6 {[%emt 0:02:48]} 26. Rb5 {[%emt 0:00:41]} Qa3 {[%emt 0:00:06]} 27. Ne7+ {[%emt 0:01:51]} Kh8 {[%emt 0:06:27]} 28. Nxg6+ {[%emt 0:00:33]} hxg6 {[%emt 0:00:01]} 29. d4 {[%emt 0:00:34] aiming for dxe5.} exd4 {[%emt 0:03:10]} (29... Ra5 $142 30. Qg5 (30. Bxg6 Rxb5 31. Rxb5 Qa1+ 32. Bb1 Qxd4 $18) 30... e4 31. Qh4+ (31. Qxg6 Rxb5 32. cxb5 Nf6 $18) 31... Kg8 32. Rxa5 (32. Bxe4 Rxb5 33. cxb5 Nf6 $18) 32... Qxa5 33. Bxe4 Nf6 34. Bxg6 Qc3) 30. Qxd4 {[%emt 0:02:28]} Ne5 {[%emt 0:01:54] [#]} 31. c5 $1 {[%emt 0:01:54][%mdl 512]} Rc8 {[%emt 0:03:22]} (31... Nf7 32. Bxg6) 32. cxd6 {[%emt 0:04:28]} (32. Rxb6 Rxb6 33. Rxb6 Qc1+ 34. Bd1 dxc5 35. Qh4+ (35. Qxe5 Qxd1+ 36. Kh2 Qh5 $11) 35... Kg8 $14) 32... Rc5 {[%emt 0:00:05]} 33. Qh4+ {[%emt 0:00:30]} Kg8 {[%emt 0:00:05]} 34. Bb3+ {[%emt 0:00:09] Weighted Error Value: White=0.04 (flawless) /Black=0.71.  Loses game:     	---       	Black=1      Mistake:       	---       	Black=2      Inaccurate:     	---       	Black=1      OK:         	White=10    	Black=5      Best:        	White=1     	Black=2      Strong:       	White=1     	---} (34. Rxc5 $142 Qxc5 35. Bb3+ Nf7 36. d7 (36. Qd8+ Kh7 37. Bxf7 Ra8 38. Qxa8 Qf5 39. Qg8+ Kh6 40. f4 Qxf4) 36... Ra8 37. Rd1 (37. d8=B Qe5 $18) 37... Qh5 38. d8=Q+ Rxd8 39. Qxd8+ (39. Rxd8+ Kh7 $18) 39... Kh7 40. Bxf7) 1-0

[Event "FIDE Women GP Shimkent 2024"]
[Site "Shimkent"]
[Date "2024.11.03"]
[Round "5.5"]
[White "Tsolakidou, Stavroula"]
[Black "Paehtz, Elisabeth"]
[Result "1-0"]
[ECO "B27"]
[WhiteElo "2439"]
[BlackElo "2458"]
[Annotator "RC"]
[PlyCount "125"]
[EventDate "2024.10.11"]
[EventType "tourn"]
[EventCountry "KAZ"]
[SourceTitle "playchess.com"]
[Source "ChessBase"]
[SourceQuality "1"]
[TimeControl "40/5400+30:1800+30"]

1. e4 {[%emt 0:00:04]} c5 {[%emt 0:00:02]} 2. Nf3 {[%emt 0:00:06]} g6 {[%emt 0:00:04]} 3. c3 {[%emt 0:03:11]} d5 {[%emt 0:00:05]} 4. e5 {[%emt 0:01:53]} Nc6 {[%emt 0:00:11]} 5. d4 {[%emt 0:01:20]} Bg4 {[%emt 0:00:05]} 6. Bb5 {[%emt 0:01:07]} Qb6 {[%emt 0:02:27]} 7. Bxc6+ {[%emt 0:05:06]} Qxc6 {[%emt 0:00:33]} 8. O-O {[%emt 0:02:26]} e6 {[%emt 0:00:46]} 9. dxc5 {[%emt 0:16:19]} Bxc5 {[%emt 0:00:45]} 10. Nbd2 {[%emt 0:00:05]} Ne7 {[%emt 0:09:27]} 11. Nb3 {[%emt 0:02:12]} Bb6 {[%emt 0:00:06]} 12. Bg5 {[%emt 0:02:05]} Nf5 {[%emt 0:08:40]} 13. h3 {[%emt 0:09:59]} Bxf3 {[%emt 0:00:05]} 14. Qxf3 {[%emt 0:00:05]} Bd8 {[%emt 0:13:28]} 15. Bxd8 {[%emt 0:06:02]} Rxd8 {[%emt 0:00:03]} 16. g4 {[%emt 0:00:40]} Ng7 {[%emt 0:01:25]} 17. Qe3 {[%emt 0:10:55]} Qa6 {[%emt 0:19:39]} 18. Qh6 {[%emt 0:02:07]} O-O {[%emt 0:00:07]} 19. Nd4 {[%emt 0:00:45]} f5 {[%emt 0:02:52]} 20. exf6 {[%emt 0:06:48]} Rxf6 {[%emt 0:00:13]} 21. Qg5 {[%emt 0:00:18]} Rdf8 {[%emt 0:00:30]} 22. Qe5 {[%emt 0:00:26]} Qb6 {[%emt 0:03:39]} 23. b4 {[%emt 0:09:56]} Qa6 {[%emt 0:03:24]} 24. f3 {[%emt 0:04:11]} Qc4 {[%emt 0:03:36]} 25. Rac1 {[%emt 0:02:18]} h6 {[%emt 0:04:48]} 26. Rf2 {[%emt 0:03:32]} Kh7 {[%emt 0:03:49]} 27. Kg2 {[%emt 0:01:27]} Qd3 {[%emt 0:02:40]} 28. Rcc2 {[%emt 0:00:54]} Qc4 {[%emt 0:03:10]} 29. Rfe2 {[%emt 0:00:41]} R8f7 {[%emt 0:01:16]} 30. Re3 {[%emt 0:00:29]} a6 {[%emt 0:03:22]} 31. Rce2 {[%emt 0:00:23]} a5 {[%emt 0:04:16]} 32. bxa5 {[%emt 0:00:59]} Qa6 {[%emt 0:00:03]} 33. Nb3 {[%emt 0:02:27]} Qb5 {[%emt 0:00:21]} 34. Rd2 {[%emt 0:00:46]} h5 {[%emt 0:01:13]} 35. Qd4 {[%emt 0:02:30]} Rf4 {[%emt 0:03:43]} 36. Qd3 {[%emt 0:00:44]} Qd7 {[%emt 0:01:50]} 37. Nd4 {[%emt 0:01:23]} Qe7 {[%emt 0:01:53]} 38. Rde2 {[%emt 0:00:43]} hxg4 {[%emt 0:02:23]} 39. hxg4 {[%emt 0:00:08]} Qg5 {[%emt 0:02:25]} 40. Kh1 {[%emt 0:02:14]} R4f6 {[%emt 0:00:31]} 41. Re5 {[%emt 0:30:37]} Qc1+ {[%emt 0:03:53]} 42. Re1 {[%emt 0:00:00]} Qf4 {[%emt 0:01:01]} 43. Kg2 {[%emt 0:00:00]} Kg8 {[%emt 0:00:50]} 44. Qe3 {[%emt 0:00:00]} Rc7 {[%emt 0:04:08]} 45. Nxe6 {[%emt 0:00:00]} Qxe3 {[%emt 0:00:22]} 46. R1xe3 {[%emt 0:00:00]} Nxe6 {[%emt 0:00:39]} 47. Rxe6 {[%emt 0:00:00]} Rxe6 {[%emt 0:01:04]} 48. Rxe6 {[%emt 0:00:00]} Kf7 {[%emt 0:00:08]} 49. Rd6 {[%emt 0:00:00]} Rxc3 {[%emt 0:00:14]} 50. Rxd5 {[%emt 0:00:00]} Ra3 {[%emt 0:04:32]} 51. Rb5 {[%emt 0:00:00]} Rxa2+ {[%emt 0:05:27]} 52. Kg3 {[%emt 0:00:00]} Kg8 {[%emt 0:02:25]} 53. Kf4 {[%emt 0:00:00]} Ra3 {[%emt 0:00:15]} 54. Kg5 {[%emt 0:01:08]} Rxf3 {[%emt 0:00:13]} 55. Rxb7 {[%emt 0:00:25]} Ra3 {[%emt 0:01:37]} 56. Kxg6 {[%emt 0:00:06]} Kf8 {[%emt 0:00:01]} 57. Ra7 {[%emt 0:00:23]} Ra4 {[%emt 0:00:26]} 58. g5 {[%emt 0:00:18]} Ra1 {[%emt 0:00:14]} 59. a6 {[%emt 0:00:00]} Ra2 {[%emt 0:00:15]} 60. Ra8+ {[%emt 0:00:36]} Ke7 {[%emt 0:00:06]} 61. a7 {[%emt 0:00:17]} Ra6+ {[%emt 0:00:19]} 62. Kg7 {[%emt 0:00:11]} Ra1 {[%emt 0:00:11]} 63. Rf8 {[%emt 0:00:15]} 1-0